Cogmind - Beta 14 @@@ ROGUE MODE // 2025.04.30 @ 13:15:34 Player: BVrutally Odd Result: Destroyed by G-47 Trooper with Particle Gun Performance ------------- Evolutions (0) 0 Regions Visited (2) 400 Robots Destroyed (38) 190 Value Destroyed (621) 621 Prototype IDs (3) 60 Alien Tech Used (0) 0 Bonus (0) 0 TOTAL SCORE: 1271 Bonus ------- None Cogmind --------- Core Integrity 0/250 Matter 290/300 Energy 244/250 System Corruption 0% Temperature Cool (99) Movement Rolling (140) Ox4 Location -10/Mines Parts ------- > --- POWER (1) -------- Ion Engine > --- PROPULSION (2) --- Light Treads Wheel > --- UTILITY (2) ------ High-capacity Storage Unit Seismic Detector > --- WEAPON (2) ------- EM Pulse Gun Small Laser > --- INVENTORY (20) --- Ion Engine Aluminum Leg Aluminum Leg Aluminum Leg Wheel Flight Unit Flight Unit Flight Unit Small Storage Unit Sensor Array Improved Terrain Scanner Targeting Computer Targeting Computer Hacking Suite Hacking Suite Small Laser Small Laser Grenade Launcher Grenade Launcher Peak State ------------ > --- POWER ------------ Ion Engine > --- PROPULSION ------- Light Treads Light Treads > --- UTILITY ---------- High-capacity Storage Unit Seismic Detector > --- WEAPON ----------- Particle Gun Assault Rifle > --- INVENTORY -------- Ion Engine Aluminum Leg Aluminum Leg Wheel Wheel Flight Unit Flight Unit Small Storage Unit Sensor Array Improved Terrain Scanner Small Laser Small Laser [Rating: 9] Favorites ----------- Power Ion Engine Engine Ion Engine Propulsion Light Treads Treads Light Treads Leg Aluminum Leg Wheel Wheel Utility Seismic Detector Device Seismic Detector Storage High-capacity Storage Unit Weapon Small Laser Energy Gun Small Laser Ballistic Gun Assault Rifle Launcher Grenade Launcher Build | -11 -10 -10 ------- Run | Yrd Mat Min Slots Evolved . | . . . Power . | . . . Propulsion . | . . . Utility . | . . . Weapon . | . . . Parts Attached 23 | 7 10 6 Power 2 | 1 1 . Engine 2 | 1 1 . Core . | . . . Reactor . | . . . Propulsion 6 | 2 3 1 Treads 4 | 2 2 . Leg 1 | . 1 . Wheel 1 | . . 1 Hover . | . . . Flight . | . . . Utility 3 | 2 1 . Device 1 | 1 . . Storage 2 | 1 1 . Processor . | . . . Hackware . | . . . Protection . | . . . Artifact . | . . . Weapon 12 | 2 5 5 Energy Gun 9 | 1 5 3 Energy Cannon . | . . . Ballistic Gun 1 | 1 . . Ballistic Cannon . | . . . Launcher 2 | . . 2 Special Weapon . | . . . Impact Weapon . | . . . Slashing Weapon . | . . . Piercing Weapon . | . . . Special Melee Weapon . | . . . Unidentified Prototypes . | . . . Parts Lost 5 | . 4 1 Power 1 | . 1 . Propulsion 2 | . 1 1 Utility . | . . . Weapon 2 | . 2 . Highest Loss Streak 2 | . 2 1 To Critical Strikes . | . . . Average Slot Usage (%) 99 | . 99 100 Engine 13 | . 13 14 Treads 26 | . 27 22 Wheel 1 | . . 5 Device 14 | . 14 14 Storage 14 | . 14 14 Energy Gun 20 | . 17 27 Ballistic Gun 7 | . 10 . Peak Build Rating 9 | 7 9 9 Average Rating 8 | 5 8 8 On Entrance 5 | . 7 9 Naked Turns . | . . . Heaviest Build 51 | 14 51 50 Greatest Support 40 | 40 40 40 Greatest Overweight (x) 4 | . 1 4 Average Overweight (x) 1 | . . 2 Largest Inventory Capacity 20 | 8 20 20 Average Capacity 18 | 7 19 20 Most Carried 20 | 7 20 20 Average Carried 15 | 4 14 19 Final Capacity 20 | 8 20 20 Final Carried 20 | 7 20 19 Class Distribution -------------------- 55% | Mutant 44% | Scavenger-Mutant Dominant Class ---------------- Mutant | -10/Materials Scavenger-Mutant | -10/Mines Resources | -11 -10 -10 ----------- Run | Yrd Mat Min Matter Collected 698 | 300 298 100 Remotely . | . . . Salvage Created 1034 | 161 660 213 Parts 71 | 10 45 16 Haulers Intercepted 2 | . 2 . Recyclers Shooed 2 | . 1 1 Parts Field Recycled . | . . . Retrieved Matter . | . . . Parts Self-Destructed . | . . . Prevented . | . . . Kills | -11 -10 -10 ------- Run | Yrd Mat Min Combat Hostiles Destroyed 23 | . 13 10 Guns 18 | . 13 5 AOE 5 | . . 5 Classes Destroyed 8 | 3 5 . Worker 4 | 1 3 . Tunneler 3 | 3 . . Hauler 2 | . 2 . Recycler 1 | 1 . . Operator 3 | . 3 . Watcher 2 | . 2 . Swarmer 13 | . 6 7 Grunt 10 | . 7 3 Best Kill Streak 4 | 3 4 3 Combat Bots Only 4 | . 4 3 Max Kills in Single Turn 2 | 1 2 2 Gunslinging . | . . . Exploded 2 | . . 2 Melee . | . . . Uniques/NPCs Destroyed . | . . . Combat | -11 -10 -10 -------- Run | Yrd Mat Min Hostile Shots Fired 174 | . 125 49 Missed 43 | . 35 8 Damage Taken 1243 | . 883 360 Core 260 | . 161 99 Absorbed by Shields . | . . . Core Remaining (%) 100 | 100 . . Volleys Fired 119 | 10 84 25 Largest 2 | 2 2 2 Hottest 85 | 60 85 80 Shots Fired 229 | 20 164 45 Gun 224 | 20 164 40 Cannon . | . . . Launcher 5 | . . 5 Special . | . . . Kinetic 81 | 10 71 . Thermal 139 | 10 93 36 Explosive 5 | . . 5 Electromagnetic 4 | . . 4 Robot Hit Streak 13 | 9 13 9 Robot Miss Streak 7 | 1 7 3 Penetration Max . | . . . Secondary Targets 5 | . 5 . Max Gunslinging Chain 1 | . 1 . Shots Hit Robots 138 | 13 100 25 Core Hits 56 | 6 37 13 Critical Kills . | . . . Critical Parts Destroyed 1 | . 1 . Critical Strikes 2 | . 2 . Burn 1 | . 1 . Destroy 1 | . 1 . Melee Attacks . | . . . Impact . | . . . Slashing . | . . . Piercing . | . . . Sneak Attacks . | . . . Combat Hostiles . | . . . Follow-up Attacks . | . . . Damage Inflicted 1891 | 155 1244 492 Guns 1653 | 155 1244 254 Cannons . | . . . Explosions 238 | . . 238 Melee . | . . . Ramming . | . . . Kinetic 621 | 77 544 . Thermal 995 | 78 700 217 Explosive 238 | . . 238 Electromagnetic 37 | . . 37 Impact . | . . . Slashing . | . . . Piercing . | . . . Highest Corruption . | . . . Average Corruption . | . . . Corruption Purged . | . . . Corruption Blocked . | . . . Overload Shots . | . . . Overflow Damage . | . . . Projectiles . | . . . Explosions . | . . . Melee . | . . . Knockbacks . | . . . Impact . | . . . Kinetic . | . . . Secondary . | . . . Self-Inflicted Damage . | . . . Shots . | . . . Rammed . | . . . Targets Rammed . | . . . Kicked . | . . . Crushed . | . . . Highest Temperature 114 | . 114 90 Average Temperature 33 | . 32 36 Received Heat Transfer 366 | . 297 69 Siege Activations . | . . . Robots Corrupted . | . . . Combat Hostiles . | . . . Parts Fried . | . . . Impact Corruptions . | . . . Robots Melted . | . . . Combat Hostiles . | . . . Parts Melted 2 | . 1 1 Heat Transferred 2334 | 175 1659 500 Parts Sabotaged . | . . . Parts Stolen . | . . . Parts Stripped . | . . . Power Chain Reactions . | . . . Alert | -11 -10 -10 ------- Run | Yrd Mat Min Peak Influence 227 | 25 227 149 Initial 16 | . 16 . Average 65 | 9 64 80 Maximum Alert Level 1 | . 1 . Low Security (%) 93 | 100 89 100 Level 1 6 | . 10 . Level 2 . | . . . Level 3 . | . . . Level 4 . | . . . Level 5 . | . . . High Security . | . . . Max Security . | . . . Squads Dispatched 4 | . 4 . Investigation . | . . . Extermination . | . . . Reinforcement 4 | . 4 . Assault . | . . . Garrison . | . . . Intercept . | . . . Searches Triggered . | . . . Construction Impeded . | . . . Haulers Reinforced . | . . . Active Scanning Responses . | . . . Cargo Convoy Interrupts . | . . . Stealth | -11 -10 -10 --------- Run | Yrd Mat Min Distress Signals 4 | . 4 . Communications Jammed . | . . . Distress Signals . | . . . Times Spotted 47 | . 32 15 Peak Tracking Total 7 | . 7 3 Tactical Retreats 3 | . 1 2 Traps | -11 -10 -10 ------- Run | Yrd Mat Min Traps Triggered . | . . . Indirectly . | . . . Trap Hack Attempts . | . . . Triggered . | . . . Disarmed . | . . . Reprogrammed . | . . . Reused . | . . . Traps Extracted . | . . . Installed . | . . . Triggered . | . . . Machines | -11 -10 -10 ---------- Run | Yrd Mat Min Machines Disabled 1 | . 1 . Max in Single Turn 1 | . 1 . Machines Repaired . | . . . Machines Dismantled . | . . . Machines Sabotaged . | . . . Overloaded Fab Kills . | . . . Hacking | -11 -10 -10 --------- Run | Yrd Mat Min Machines Accessed 4 | . 4 . Terminals 3 | . 3 . Fabricators . | . . . Repair Stations . | . . . Recycling Units 1 | . 1 . Scanalyzers . | . . . Garrison Access . | . . . Total Hacks 15 | . 15 . Successful 7 | . 7 . Failed 8 | . 8 . Catastrophic 2 | . 2 . Database Lockouts . | . . . Manual 3 | . 3 . Terminals 14 | . 14 . Fabricators . | . . . Repair Stations . | . . . Recycling Units 1 | . 1 . Scanalyzers . | . . . Garrison Access . | . . . Terminal Hacks 5 | . 5 . Robot Analysis 1 | . 1 . Prototype ID Bank 1 | . 1 . Unreport Threat 1 | . 1 . Locate Traps 1 | . 1 . Registered Components 1 | . 1 . Fabricator Hacks . | . . . Repair Station Hacks . | . . . Recycling Unit Hacks 1 | . 1 . Retrieve Components 1 | . 1 . Scanalyzer . | . . . Garrison Access Hacks . | . . . Unauthorized Hacks 1 | . 1 . Terminals 1 | . 1 . Operators 1 | . 1 . Fabricators . | . . . Repair Stations . | . . . Recycling Units . | . . . Scanalyzers . | . . . Garrison Access . | . . . Data Cores Recovered . | . . . Used . | . . . Hacking Detections 3 | . 3 . Full Trace Events . | . . . Feedback Events . | . . . Feedback Blocked . | . . . Robot Schematics Acquired . | . . . Robots Built . | . . . Authchips . | . . . Time . | . . . Total Robot Build Rating . | . . . Part Schematics Acquired . | . . . Parts Built . | . . . Authchips . | . . . Time . | . . . Total Part Build Rating . | . . . Parts Repaired . | . . . Time . | . . . Parts Recycled . | . . . Recycled Matter . | . . . Retrieved Matter . | . . . Retrieved Components 10 | . 10 . Parts Scanalyzed . | . . . Part Schematics Acquired . | . . . Parts Damaged . | . . . Bothacking | -11 -10 -10 ------------ Run | Yrd Mat Min Used RIF Installer . | . . . Robots Hacked . | . . . Non-combat . | . . . Combat . | . . . Robot Hacks Applied . | . . . Relay Couplers Released . | . . . Fabnet Peak Effective % . | . . . Robots Rewired . | . . . Allies Hacked . | . . . Hacks Repelled . | . . . Allies | -11 -10 -10 -------- Run | Yrd Mat Min Total Allies . | . . . Largest Group . | . . . Highest-Rated Group . | . . . Highest-Rated Ally . | . . . Total Orders . | . . . Ally Attacks . | . . . Total Damage . | . . . Kills . | . . . Allies Corrupted . | . . . Allies Melted . | . . . Intel | -11 -10 -10 ------- Run | Yrd Mat Min Robot Analysis Total 1 | . 1 . Derelict Logs Recovered 1 | . . 1 Drone Launches . | . . . Drone Recoveries . | . . . Exploration | -11 -10 -10 ------------- Run | Yrd Mat Min Turns Passed 3120 | 195 2093 832 Spaces Moved 1162 | 97 734 331 Core 6 | 6 . . Treads 972 | 91 734 147 Legs . | . . . Wheels 184 | . . 184 Hover . | . . . Flight . | . . . Fastest Speed 50 | 50 160 140 Average Speed 212 | 153 232 184 Slowest Speed 240 | 160 240 240 Overloaded Moves . | . . . Propulsion Burnouts . | . . . Robots Hopped . | . . . Cave-ins Triggered . | . . . Exploration Rate (%) 54 | 6 81 77 Regions Visited 2 Branch Regions 1 Pre-discovered Areas . | . . . Known Exits Taken . | . . . Unknown Exits Taken 2 | 1 1 . Scrap Searched 1 | . . 1 Spaces Dug . | . . . Terrain Destroyed 30 | . . 30 Melee . | . . . Projectile . | . . . AOE 30 | . . 30 Terrain Rammed . | . . . Walls Destroyed . | . . . Machines Disabled . | . . . Actions | -11 -10 -10 --------- Run | Yrd Mat Min Total 1579 | 120 953 506 Wait 254 | . 110 144 Move 1160 | 96 733 331 Hop . | . . . Pick Up 21 | 7 14 . Fast Attach 8 | 7 1 . Attach 4 | . 3 1 Detach . | . . . Swap 11 | . 6 5 Drop 2 | . 2 . Fire 119 | 10 84 25 Melee . | . . . Ram . | . . . Kick . | . . . Crush . | . . . Escape Stasis . | . . . Rewire . | . . . Trap . | . . . Miscellaneous . | . . . Route ------- -11/Scrapyard -10/Materials (discovered 3 exits: [*Mat x2] / [*Min]) -10/Mines (discovered 1 exit: [*Mat]) History --------- Turn | Location | Event 9 | -11/Scrapyard | Discovered new exit (range 15) 196 | -11/Scrapyard | Entered Materials 229 | -10/Materials | Discovered new exit (range 16) 311 | -10/Materials | Build established: Mutant 590 | -10/Materials | Discovered new exit (range 4) 1517 | -10/Materials | Discovered new exit (range 5) 1731 | -10/Materials | Core integrity fell below 50% 2031 | -10/Materials | Build established: Scavenger-Mutant 2289 | -10/Materials | Entered Mines 2415 | -10/Mines | Assembled infested the area 2420 | -10/Mines | Assisted by a Guerilla fighting off Assembled 2648 | -10/Mines | Discovered new exit (range 16) 2669 | -10/Mines | Core integrity fell below 20% 2732 | -10/Mines | Learned location of 2 exits from Materials 3121 | -10/Mines | Destroyed by G-47 Trooper with Particle Gun Last Messages --------------- 02774_ K-01 Serf collects debris. 02775_ U-05 Engineer builds a Wall. 02777_ U-05 Engineer lays Concrete. 02778_ K-01 Serf collects debris. 02803_ Lgt. Treads destroyed. 02817_ Destroyed Flight Unit. 02817_ S-10 Pest destroyed. 02827_ Acquired 10 matter. 02866_ Critical hit (Burn: +37). 02867_ G-34 Mercenary destroyed. 02869_ G-47 Trooper destroyed. 02876_ The unstable cave ceiling collapses. 02880_ U-05 Engineer builds a Wall. 02883_ U-05 Engineer lays Concrete. 02907_ K-01 Serf collects debris. 02994_ Acquired 40 matter. 02994_ K-01 Serf collects debris. 03006_ Destroyed Flight Unit. 03012_ S-10 Pest destroyed. 03119_ G-34 Mercenary destroyed. Map ----- +----------------------------------------------------+ | ??## ## ##???????? | | ??# ! ##??????? | | ?## #### ###### ##?????? | | ## #########??## !###?## #?????? | | #[ #??????????## ##?## #?????? | | # ##??????????# #??## ##?????? | | ## #???????????# #?## ##??????? | | ## #???????????# ### #?# #???????? | | # #????##?????# ##??# ##?# #???????? | | ##??? #?????####????###??####???????? | | #### ##????????????????????????????? | | ## #????????????????????????????? | | # ##???????????????????????????? | | # ##???????????###????????????? | | ##?????????? ????????????? | | ## #?????????? ""????????????? | | ## *%* #????????? ""????????????? | | ## %#### !! #???????? ""????????????? | | [# #### #???????? ????????????? | | ## =####???# #????????# #????????????? | | # #??????? #????????# #???####?????? | | %* ##??????? #?????### #??## ####??? | | ##?????? #?????#[= #?## ##?? | | # ##??????# ##?????#g###?# #?? | | # #???????###??????#=##### #?? | | # #????????????????#@ #?? | | ## ##????????###?????# ###### #?? | | ?## ###?????????# ???? #????### #?? | | ??# #??######???# #???#####??????## #?? | | ### #?## ##??# #??????????????## #?? | | ### #??# #?????????????## #?? | | ## #### ############?## ##?? | | ?##### ### #??? | | #?????# #??? | | ??????## ############# #?? | | #??????##### ##???????????# ### #?? | | ???????????####????????????# ## ##?? | | ???????????????????????????# ## #??? | | ???????????????????????????# ## #??? | | ############???????????????# ### #??? | | #???????????????# #?## #?? | | ########## #????#####??????# #??## #?? | | ?????????# #????# ##?????? ????# ##?? | | ?????????# ##### ##????? ????## ##??? | | ?????????# #????? ??????###???? | | ?????????##### ## #????? ????????????? | | ?????????????# ## #????# #???????????? | | ?????????????# ## #??## ?##?????????? | | ?????????????# #??## ? ##???????? | | ?????????????#### #?## """ ##??????? | +----------------------------------------------------+ Best States ------------- Heat Dissipation 25 Energy Generation 10 Energy Capacity 250 Matter Stores 300 Matter Capacity 300 Sight Range 16 Terrain Scan Density 10 Evasion (%) 40 Recoil Reduction 2 Item Schematics ----------------- None Robot Schematics ------------------ None Fabricated ------------ Nothing Alien Tech Used ----------------- None Achievements -------------- None Challenges ------------ None Game ------ Seed BattleExpertStorage Manual? 0 Play Time 00:11:53 Cumulative 239.6 hours Start 2025.04.30 @ 13:03:48 End 2025.04.30 @ 13:15:34 Sessions 1 Manual Loads 0 Difficulty Rogue Special Mode None Game No. 113 Rogue 54 Adventurer 16 Explorer 43 Win Type - Total 33 Types 20/5/2/1/0/1/2/1/1 Lore% 86 Gallery% 88 Achievement% 80 Wizard Run 0 Options --------- Layout 2 ASCII 0 Keyboard 0 Movement Mouse Keybinds 0 Fullscreen 1 Font 32/Tamsyn Map View 50x44 Zoom Use 0% Tactical HUD 1 Map Filters NONE Filters NONE Steam 1 RUN: 59ecc2ac-dabe-4c8b-9e4b-3fd563384813